bitfinex/quotes_SOLUSD_20250929
["timestamp","ask_amount","ask_price","bid_price","bid_amount"]
[1759152328949,26.0,206.51,206.47,0.72]
[1759152329126,26.0,206.51,206.48,0.72]
[1759152329624,26.0,206.46,206.45,0.2]
[1759152329969,26.0,206.46,206.45,0.92]
[1759152331346,27.68508823,206.46,206.45,0.2]
[1759152331533,32.52864146,206.46,206.45,0.2]
[1759152332044,4.84253725,206.51,206.45,0.92]
[1759152332257,1.68508823,206.55,206.46,38.52]
[1759152332553,6.52629659,206.56,206.47,0.72]
[1759152332761,26.0,206.53,206.47,0.72]
[1759152333659,26.0,206.53,206.48,4.84308407]
[1759152333842,26.0,206.53,206.49,0.72]
[1759152334149,1.68508823,206.56,206.49,0.72]
[1759152334466,6.52559357,206.59,206.49,0.72]
[1759152334633,26.0,206.56,206.49,0.72]
[1759152335355,26.0,206.58,206.49,0.72]
[1759152335732,26.0,206.58,206.5,16.94915254]
[1759152335928,26.0,206.58,206.51,38.52]
[1759152336137,4.84076189,206.58,206.52,0.72]
[1759152337346,30.84051072,206.59,206.52,0.72]
[1759152337856,26.0,206.59,206.52,0.72]
[1759152338036,26.0,206.59,206.53,4.84191158]
[1759152338238,26.0,206.59,206.54,0.72]
[1759152338962,30.84050704,206.59,206.54,0.72]
[1759152339133,30.84050704,206.59,206.55,0.72]
[1759152339452,30.84050704,206.59,206.53,4.84191158]
[1759152339453,32.52513927,206.61,206.56,0.72]
[1759152339747,1.68508823,206.61,206.57,0.72]
[1759152340066,4.91801099,206.64,206.58,0.72]
[1759152340358,26.0,206.63,206.58,0.72]
[1759152340569,6.52442242,206.64,206.59,0.72]
[1759152340728,1.68508823,206.64,206.6,0.72]
[1759152340933,1.68508823,206.64,206.61,0.72]
[1759152341150,26.0,206.62,206.61,0.72]
[1759152342254,26.0,206.63,206.61,0.72]
[1759152343337,26.0,206.63,206.62,0.72]
[1759152344335,26.0,206.64,206.59,0.72]
[1759152344554,26.0,206.64,206.6,0.72]
[1759152346961,26.0,206.64,206.61,0.72]
[1759152348573,26.0,206.64,206.62,0.72]
[1759152348866,26.0,206.64,206.63,0.72]
[1759152349061,26.0,206.64,206.61,4.83996123]
[1759152349375,26.0,206.64,206.61,0.72]
[1759152350051,26.0,206.64,206.62,0.72]
[1759152350654,26.0,206.65,206.63,0.72]
[1759152351079,4.83792251,206.71,206.63,80.02]
[1759152351358,4.83792251,206.71,206.64,0.69]
[1759152351664,26.0,206.68,206.64,0.69]
[1759152352052,0.56,206.7,206.64,0.69]
[1759152352260,26.0,206.68,206.64,0.69]
[1759152352476,4.83749881,206.72,206.65,0.69]
[1759152352668,26.0,206.7,206.66,4.83886576]
[1759152352862,5.39724025,206.73,206.67,38.47]
[1759152353165,26.0,206.7,206.67,38.47]
[1759152354454,30.83771279,206.71,206.67,37.78]
[1759152354658,26.0,206.71,206.68,0.69]
[1759152354995,0.1,206.79,206.7,2.62902356]
[1759152355270,0.1,206.79,206.78,2.62902356]
[1759152355770,0.1,206.79,206.78,8.1550812]
[1759152355969,0.1,206.87,206.78,10.78410476]
[1759152356175,0.66,206.87,206.83,2.62902356]
[1759152356374,26.66,206.87,206.83,2.62902356]
[1759152356584,0.66,206.84,206.83,2.62902356]
[1759152356956,0.1,206.84,206.83,2.62902356]
[1759152357558,0.1,206.84,206.83,3.31902356]
[1759152357761,0.1,206.84,206.83,8.15391211]
[1759152357980,0.1,206.84,206.79,5.52582378]
[1759152358155,0.1,206.84,206.8,37.8]
[1759152358359,0.1,206.84,206.8,0.69]
[1759152358680,0.1,206.84,206.81,37.8]
[1759152358873,0.1,206.84,206.82,37.8]
[1759152359185,0.1,206.84,206.82,40.42902356]
[1759152359382,0.1,206.84,206.82,2.62902356]
[1759152359578,0.56,206.83,206.82,40.42902356]
[1759152359774,26.1,206.84,206.82,37.8]
[1759152360006,26.1,206.84,206.82,40.42902356]
[1759152360168,0.1,206.84,206.82,40.42902356]
[1759152360488,0.1,206.84,206.82,45.26411908]
[1759152360869,0.1,206.84,206.83,0.69]
[1759152361885,0.1,206.84,206.83,5.52488855]
[1759152362575,0.1,206.84,206.83,43.32488855]
[1759152365679,0.1,206.84,206.83,5.52488855]
[1759152365880,0.1,206.84,206.83,42.59488855]
[1759152366287,0.1,206.84,206.83,43.28488855]
[1759152366600,0.1,206.84,206.83,42.59488855]
[1759152367186,0.1,206.84,206.83,43.28488855]
[1759152368177,0.1,206.87,206.83,43.28488855]
[1759152368178,0.1,206.87,206.83,55.37210993]
[1759152368385,0.1,206.87,206.86,2.62902356]
[1759152368689,0.1,206.87,206.86,40.38902356]
[1759152368908,0.1,206.87,206.86,41.07902356]
[1759152370470,0.1,206.87,206.86,8.15321093]
[1759152370672,0.1,206.87,206.86,45.89321093]
[1759152371089,0.1,206.87,206.86,43.26418737]
[1759152371274,0.1,206.87,206.86,5.52418737]
[1759152371473,0.1,206.87,206.86,43.26418737]
[1759152372482,1e-08,206.87,206.86,56.85978138]
[1759152373196,1e-08,206.87,206.86,43.26418737]
[1759152373578,1e-08,206.87,206.86,56.85978138]
[1759152376882,1e-08,206.87,206.86,43.26418737]
[1759152377388,1e-08,206.87,206.86,5.52418737]
[1759152377592,1e-08,206.87,206.86,43.26418737]
[1759152377900,1e-08,206.87,206.86,42.57418737]
[1759152379489,1e-08,206.87,206.86,4.83418737]
[1759152380021,1e-08,206.87,206.86,37.74]
[1759152381080,1e-08,206.87,206.86,38.41]
[1759152381600,1e-08,206.87,206.86,122.54418737]
[1759152382496,1e-08,206.87,206.86,43.24418737]
[1759152382703,1e-08,206.87,206.86,43.22418737]
[1759152383386,0.56000001,206.87,206.8,79.3]
[1759152383683,0.56,206.86,206.81,37.72]
[1759152383888,0.56,206.85,206.81,37.72]
[1759152384083,0.56,206.84,206.81,37.72]
[1759152384297,26.0,206.85,206.81,37.72]
[1759152384495,26.56,206.86,206.81,37.72]
[1759152384699,26.56,206.86,206.81,38.39]
[1759152385077,26.0,206.85,206.8,4.83552032]
[1759152385285,26.0,206.85,206.81,37.76]
[1759152385484,26.56,206.85,206.81,42.59527278]
[1759152385679,26.0,206.85,206.81,43.26527278]
[1759152385887,1e-08,206.87,206.82,0.67]
[1759152386303,1e-08,206.87,206.83,51.43559401]
[1759152386703,1e-08,206.87,206.84,0.67]
[1759152386912,1e-08,206.87,206.85,37.84]
[1759152387502,1e-08,206.87,206.86,43.34418737]
[1759152388890,1e-08,206.87,206.86,56.93978138]
[1759152389095,1e-08,206.87,206.86,5.50418737]
[1759152389609,1e-08,206.87,206.86,56.91978138]
[1759152390813,1e-08,206.89,206.87,13.59559401]
[1759152391116,1e-08,206.89,206.88,51.43559401]
[1759152391308,1e-08,206.89,206.88,52.10559401]
[1759152391506,1e-08,206.89,206.88,56.93931404]
[1759152391895,1e-08,206.89,206.88,5.50372003]
[1759152392302,1e-08,206.89,206.88,42.67372003]
[1759152392910,1e-08,206.89,206.88,43.34372003]
[1759152394205,1e-08,206.89,206.88,42.67372003]
[1759152395315,1e-08,206.89,206.88,43.34372003]
[1759152395503,1e-08,206.89,206.88,4.83372003]
[1759152395917,1e-08,206.89,206.86,16.9196558]
[1759152396125,1e-08,206.89,206.86,17.5896558]
[1759152396531,1e-08,206.89,206.87,38.47]
[1759152397114,1e-08,206.89,206.87,0.67]
[1759152397334,1e-08,206.89,206.88,37.8]
[1759152397625,1e-08,206.89,206.88,38.47]
[1759152398009,1e-08,206.89,206.88,37.8]
[1759152398328,1e-08,206.89,206.88,37.78]
[1759152398618,1e-08,206.89,206.88,38.45]
[1759152399619,1e-08,206.89,206.88,37.78]
[1759152399802,1e-08,206.89,206.88,37.76]
[1759152400211,1e-08,206.89,206.88,42.59372003]
[1759152400408,1e-08,206.89,206.88,43.26372003]
[1759152400604,1e-08,206.89,206.88,42.59372003]
[1759152400816,1e-08,206.89,206.88,43.26372003]
[1759152401405,1e-08,206.89,206.87,4.83393817]
[1759152401603,1e-08,206.89,206.88,37.76]
[1759152402327,1e-08,206.89,206.88,42.59372003]
[1759152402820,1e-08,206.89,206.88,43.26372003]
[1759152403219,1e-08,206.89,206.88,42.59372003]
[1759152404007,1e-08,206.89,206.88,4.83372003]
[1759152404207,1e-08,206.89,206.88,42.55372003]
[1759152408327,1e-08,206.89,206.88,43.22372003]
[1759152409431,1e-08,206.89,206.88,42.55372003]
[1759152410108,1e-08,206.89,206.86,4.83399115]
[1759152410109,0.56000001,206.89,206.86,4.83399115]
[1759152410315,0.56,206.88,206.83,4.83488855]
[1759152410532,0.56,206.87,206.84,37.72]
[1759152410712,0.56,206.86,206.84,37.72]
[1759152410915,0.56000001,206.89,206.84,37.72]
[1759152411121,0.56,206.88,206.85,4.83442107]
[1759152411314,0.56,206.88,206.86,37.72]
[1759152411722,0.56,206.87,206.86,37.72]
[1759152412418,26.56,206.87,206.86,37.72]
[1759152412621,28.2375272,206.87,206.86,37.72]
[1759152414136,33.07148089,206.87,206.86,37.72]
[1759152414635,28.2375272,206.87,206.86,37.72]
[1759152415128,28.2375272,206.87,206.81,4.83535612]
[1759152415335,28.2375272,206.87,206.82,37.72]
[1759152415635,0.56,206.86,206.82,37.72]
[1759152416634,27.6775272,206.87,206.82,42.55496788]
[1759152416844,28.2375272,206.87,206.82,43.27496788]
[1759152418142,2.2375272,206.87,206.82,43.27496788]
[1759152419036,1.6775272,206.87,206.82,42.55496788]
[1759152419215,1e-08,206.89,206.83,0.72]
[1759152419420,26.00000001,206.89,206.84,37.74]
[1759152419613,26.0,206.88,206.85,0.72]
[1759152419841,26.0,206.88,206.86,37.74]
[1759152420049,26.00000001,206.89,206.86,42.57417056]
[1759152420229,26.0,206.88,206.86,42.57417056]
[1759152420435,26.0,206.88,206.87,37.74]
[1759152420937,26.00000001,206.89,206.87,37.74]
[1759152421133,26.0,206.88,206.86,4.83417056]
[1759152421318,26.0,206.88,206.87,37.74]
[1759152421520,26.56,206.88,206.85,37.74]
[1759152421734,1.6775272,206.86,206.85,37.74]
[1759152421929,1.6775272,206.88,206.85,37.74]
[1759152422116,26.0,206.87,206.85,37.74]
[1759152422517,26.0,206.87,206.85,42.57441776]
[1759152422940,26.0,206.86,206.85,37.74]
[1759152423745,26.0,206.87,206.85,42.57442107]
[1759152423929,26.0,206.87,206.76,24.1826272]
[1759152423930,26.0,206.87,206.77,13.59559401]
[1759152424122,27.6775272,206.88,206.78,38.46]
[1759152424322,27.6775272,206.88,206.79,14.31559401]
[1759152424524,27.6775272,206.88,206.8,38.46]
[1759152424735,27.6775272,206.88,206.81,0.72]
[1759152425146,1.6775272,206.88,206.82,37.74]
[1759152425338,1.6775272,206.88,206.82,38.46]
[1759152426245,7.07137368,206.88,206.82,5.5550192]
[1759152426443,1.6775272,206.85,206.81,4.83531425]
[1759152426852,2.2375272,206.85,206.82,37.74]
[1759152427726,26.0,206.83,206.82,37.74]
[1759152428231,1.6775272,206.85,206.82,38.46]
[1759152428432,1.6775272,206.85,206.83,0.72]
[1759152429132,1.6775272,206.88,206.82,42.57512232]
[1759152429335,1e-08,206.89,206.83,0.72]
[1759152429540,1e-08,206.89,206.84,4.8346548]
[1759152429754,1e-08,206.89,206.85,37.74]
[1759152429954,1e-08,206.89,206.85,38.46]
[1759152430252,1e-08,206.89,206.86,0.72]
[1759152431049,1e-08,206.89,206.87,0.72]
[1759152431243,1e-08,206.89,206.88,37.74]
[1759152432443,1e-08,206.89,206.88,42.57372003]
[1759152436125,1e-08,206.89,206.88,43.27372003]
[1759152437256,0.1,206.98,206.88,55.3580201]
[1759152437441,0.1,206.98,206.89,0.7]
[1759152437636,0.1,206.98,206.9,37.74]
[1759152437834,0.1,206.98,206.91,0.7]
[1759152438034,0.1,206.98,206.92,37.74]
[1759152438250,0.1,206.98,206.93,5.53255207]
[1759152438440,0.1,206.98,206.94,37.74]
[1759152438635,0.1,206.98,206.94,38.44]
[1759152438939,0.1,206.98,206.95,0.7]
[1759152439262,0.1,206.98,206.96,0.7]
[1759152439435,0.1,206.98,206.97,37.72]
[1759152439831,0.66,206.98,206.97,37.72]
[1759152440345,0.1,206.98,206.97,37.72]
[1759152440743,0.66,206.98,206.97,37.72]
[1759152440960,26.0,206.95,206.91,5.53281544]
[1759152441163,26.0,206.95,206.92,38.42]
[1759152441663,26.0,206.95,206.92,37.72]
[1759152441861,26.0,206.95,206.93,0.7]
[1759152442238,26.0,206.95,206.93,5.53235987]
[1759152442588,26.0,206.95,206.94,0.7]
[1759152442860,26.0,206.95,206.93,4.83235987]
[1759152443063,26.0,206.95,206.93,5.53235987]
[1759152443253,26.0,206.96,206.91,5.53290038]
[1759152443434,26.0,206.96,206.92,0.7]
[1759152443635,26.0,206.96,206.93,38.42]
[1759152444262,26.0,206.96,206.94,37.72]
[1759152444464,26.0,206.96,206.95,37.72]
[1759152446140,0.66,206.98,206.95,37.72]
[1759152446141,0.1,206.98,206.95,38.42]
[1759152446452,1.6775272,206.97,206.95,37.72]
[1759152446653,26.0,206.95,206.9,0.7]
[1759152446954,26.0,206.95,206.91,38.42]
[1759152447151,26.0,206.95,206.92,0.7]
[1759152447350,0.1,206.98,206.93,0.7]
[1759152447541,1.6775272,206.97,206.94,37.72]
[1759152447859,26.0,206.94,206.91,5.53297649]
[1759152448259,26.0,206.94,206.92,37.72]
[1759152448654,26.56,206.94,206.9,79.3]
[1759152448844,0.56,206.93,206.91,37.72]
[1759152449050,26.0,206.94,206.91,37.72]
[1759152449639,26.0,206.93,206.92,0.7]
[1759152450344,26.0,206.93,206.91,37.72]
[1759152450545,6.50938061,206.96,206.92,0.7]
[1759152450546,26.0,206.96,206.92,0.7]
[1759152450858,26.0,206.94,206.93,0.7]
[1759152451043,26.0,206.94,206.91,42.5529179]
[1759152451237,26.0,206.94,206.93,0.7]
[1759152452857,26.0,206.94,206.91,5.5329179]
[1759152453058,26.0,206.94,206.92,37.72]
[1759152453646,1.6775272,206.94,206.93,37.72]
[1759152453838,27.6775272,206.94,206.93,37.72]
[1759152454760,32.50984574,206.94,206.93,37.72]
[1759152456374,33.06984574,206.94,206.93,37.72]
[1759152457164,32.50984574,206.94,206.93,37.72]
[1759152458853,33.06984574,206.94,206.93,37.72]
[1759152460171,33.06984574,206.94,206.9,37.72]
[1759152460347,33.06984574,206.94,206.83,0.7]
[1759152460348,27.6775272,206.9,206.83,0.7]
[1759152460544,1.6775272,206.86,206.84,37.72]
[1759152460748,1.6775272,206.86,206.85,37.72]
[1759152461650,1.6775272,206.86,206.85,38.42]
[1759152463864,27.6775272,206.89,206.85,38.42]
[1759152464174,26.0,206.89,206.86,0.7]
[1759152464648,2.62209581,206.92,206.86,0.7]
[1759152465271,28.62209581,206.92,206.86,0.7]
[1759152465759,26.0,206.91,206.87,4.83395369]
[1759152465963,26.0,206.91,206.88,38.42]
[1759152466159,26.0,206.91,206.88,37.72]
[1759152466366,26.0,206.91,206.89,0.7]
[1759152466560,26.0,206.91,206.9,0.7]
[1759152467061,33.45489209,206.92,206.82,12.08742289]
[1759152467269,33.45489209,206.92,206.8,79.3]
[1759152467270,33.45489209,206.92,206.86,0.7]
[1759152467471,26.0,206.89,206.86,0.7]
[1759152467676,26.0,206.89,206.87,37.72]
[1759152468071,26.0,206.9,206.87,38.42]
[1759152468461,2.62209581,206.89,206.88,37.72]
[1759152470077,7.4555822,206.89,206.88,37.72]
[1759152470272,7.4555822,206.89,206.77,12.09025041]
[1759152470462,7.4555822,206.89,206.75,94.13312664]
[1759152470463,28.62209581,206.86,206.82,0.7]
[1759152470781,28.62209581,206.86,206.83,38.42]
[1759152470990,28.62209581,206.86,206.84,0.7]
[1759152471287,28.62209581,206.89,206.85,0.71]
[1759152471486,33.45558449,206.89,206.86,0.71]
[1759152472389,33.45558449,206.89,206.84,0.71]
[1759152472613,33.45558449,206.89,206.85,0.71]
[1759152474186,33.45558449,206.89,206.83,38.43]
[1759152474360,34.01558449,206.89,206.83,38.43]
[1759152477670,33.45558449,206.89,206.83,43.26480257]
[1759152477870,33.45558449,206.89,206.83,38.43]
[1759152478184,33.45558449,206.89,206.83,42.55487925]
[1759152478383,33.45558449,206.89,206.84,0.71]
[1759152478586,33.45558449,206.89,206.85,0.71]
[1759152479193,34.01558449,206.89,206.83,0.71]
[1759152479374,34.01558449,206.89,206.85,37.72]
[1759152479690,33.45558449,206.89,206.85,38.43]
[1759152480410,2.62209581,206.86,206.8,79.3]
[1759152480693,2.62209581,206.83,206.79,37.72]
[1759152480987,26.0,206.84,206.8,0.71]
[1759152481187,26.0,206.84,206.81,4.83535612]
[1759152481398,26.0,206.84,206.79,0.71]
[1759152481575,26.0,206.84,206.82,37.72]
[1759152481978,26.0,206.83,206.82,37.72]
[1759152482903,26.0,206.83,206.8,0.71]
[1759152483074,26.0,206.83,206.81,38.43]
[1759152483394,26.0,206.82,206.81,37.72]
[1759152484383,26.0,206.83,206.81,37.72]
[1759152485271,26.0,206.82,206.81,37.72]
[1759152485603,26.0,206.82,206.78,0.71]
[1759152485898,26.0,206.81,206.78,0.71]
[1759152486199,26.0,206.81,206.76,0.71]
[1759152486377,4.83558994,206.8,206.77,37.72]
[1759152486583,8.73206692,206.8,206.75,0.71]
[1759152486909,0.56,206.8,206.76,37.72]
[1759152487079,30.83538531,206.81,206.75,37.72]
[1759152487278,30.83538531,206.81,206.76,0.71]
[1759152488188,31.39538531,206.81,206.76,0.71]
[1759152488491,26.0,206.81,206.75,37.72]
[1759152488693,30.83547572,206.81,206.75,38.43]
[1759152489500,2.62209581,206.8,206.75,38.43]
[1759152489699,3.18209581,206.8,206.75,0.71]
[1759152489991,0.56,206.79,206.75,37.72]
[1759152490386,26.0,206.77,206.75,37.72]
[1759152490782,26.0,206.76,206.75,37.72]
[1759152491401,26.0,206.77,206.75,38.43]
[1759152491588,26.0,206.77,206.76,0.71]
[1759152492399,26.0,206.77,206.75,37.72]
[1759152492704,26.0,206.77,206.75,38.43]
[1759152493098,26.0,206.77,206.75,37.72]
[1759152493302,26.0,206.79,206.76,0.71]
[1759152493598,26.0,206.79,206.76,0.67]
[1759152494003,26.0,206.79,206.77,0.67]
[1759152494811,26.0,206.79,206.76,37.72]
[1759152495147,33.45801652,206.79,206.76,37.72]
[1759152495494,26.0,206.77,206.76,37.72]
[1759152497207,26.0,206.77,206.76,38.39]
[1759152497510,26.0,206.79,206.76,43.22652544]
[1759152497698,26.0,206.79,206.77,0.67]
[1759152499686,26.0,206.79,206.77,38.39]
[1759152499891,26.0,206.79,206.77,37.72]
[1759152500505,26.0,206.79,206.75,5.50670709]
[1759152500810,26.0,206.79,206.78,37.72]
[1759152501892,2.62209581,206.82,206.78,43.24605764]
[1759152502092,26.0,206.8,206.79,0.69]
[1759152502696,2.62209581,206.86,206.79,0.69]
[1759152502893,2.62209581,206.88,206.79,0.69]
[1759152503197,26.0,206.85,206.79,0.69]
[1759152503604,17.16931365,206.88,206.79,0.69]
[1759152503809,17.16931365,206.88,206.8,16.92456479]
[1759152503994,25.5,206.85,206.81,38.41]
[1759152504192,13.59559401,206.89,206.82,0.69]
[1759152504393,2.62209581,206.88,206.82,0.69]
[1759152505294,2.62209581,206.88,206.83,4.83488855]
[1759152505500,2.62209581,206.88,206.84,0.69]
[1759152506108,26.0,206.86,206.84,0.69]
[1759152506295,26.0,206.86,206.85,38.41]
[1759152507199,26.0,206.86,206.85,43.24442107]
[1759152507717,26.0,206.86,206.85,38.41]
[1759152508615,26.0,206.86,206.85,43.24442107]
[1759152509213,26.0,206.86,206.85,38.41]
[1759152509405,26.0,206.86,206.85,37.72]
[1759152509613,31.39418737,206.86,206.85,37.72]
[1759152510994,31.39418737,206.86,206.79,0.69]
[1759152511199,2.62209581,206.83,206.8,37.7]
[1759152512924,2.62209581,206.83,206.79,5.52579977]
[1759152513123,2.62209581,206.83,206.8,37.7]
[1759152513428,26.0,206.8,206.77,5.5260592]
[1759152513611,26.0,206.8,206.79,37.7]
[1759152513798,28.62209581,206.8,206.79,37.7]
[1759152517712,26.0,206.8,206.79,37.7]
[1759152517917,26.0,206.8,206.79,43.22582378]
[1759152518708,26.0,206.81,206.79,43.22582378]
[1759152518906,26.0,206.8,206.79,42.53582378]
[1759152519419,26.0,206.8,206.79,43.22582378]
[1759152520014,26.0,206.81,206.79,38.39]
[1759152520410,26.0,206.8,206.79,38.39]
[1759152521205,7.45741916,206.82,206.79,37.7]
[1759152521412,26.0,206.8,206.76,0.69]
[1759152521615,8.01741916,206.82,206.75,79.3]
[1759152521616,26.0,206.79,206.77,38.39]
[1759152522124,26.0,206.8,206.77,38.39]
[1759152522627,26.0,206.8,206.77,37.7]
[1759152522832,26.56,206.8,206.77,37.7]
[1759152523039,28.62209581,206.79,206.77,37.7]
[1759152523244,28.62209581,206.79,206.75,79.99]
[1759152523444,28.62209581,206.79,206.76,37.7]
[1759152523622,28.62209581,206.79,206.71,93.83775559]
[1759152523805,28.62209581,206.79,206.7,0.69]
[1759152523806,28.62209581,206.76,206.7,0.69]
[1759152524010,2.62209581,206.76,206.71,37.7]
[1759152524221,30.83675937,206.75,206.71,38.39]
[1759152524430,26.0,206.73,206.72,37.7]
[1759152524753,28.62209581,206.73,206.72,37.7]
[1759152525609,28.62209581,206.73,206.69,5.52815301]
[1759152525825,28.62209581,206.73,206.7,38.39]
[1759152526016,28.62209581,206.73,206.71,0.69]
[1759152526329,26.0,206.73,206.71,0.69]
[1759152527032,26.0,206.73,206.72,37.7]
[1759152530019,26.0,206.73,206.72,38.39]
[1759152531041,26.0,206.73,206.72,37.7]
[1759152533436,26.0,206.73,206.72,38.41]
[1759152533842,26.0,206.73,206.72,0.71]
[1759152534041,26.0,206.73,206.72,38.41]
[1759152536029,26.0,206.73,206.72,37.7]
[1759152536234,26.0,206.73,206.72,38.41]
[1759152540071,26.0,206.73,206.72,37.7]
[1759152540351,26.0,206.73,206.72,38.41]
[1759152540773,32.51813917,206.74,206.72,38.41]
[1759152541057,26.56,206.73,206.7,37.7]
[1759152541234,1.68110553,206.71,206.7,37.7]
[1759152541436,27.68110553,206.71,206.7,37.7]
[1759152541632,26.0,206.69,206.67,0.2]
[1759152541849,27.68110553,206.69,206.68,37.7]
[1759152542552,27.68110553,206.69,206.67,0.2]
[1759152542553,32.14783432,206.69,206.67,37.9]
[1759152542740,1.68110553,206.69,206.67,37.9]
[1759152543046,26.0,206.68,206.67,37.9]
[1759152543247,26.0,206.68,206.67,38.61]
[1759152543451,1.68110553,206.69,206.67,38.61]
[1759152543452,1.68110553,206.69,206.67,37.9]
[1759152544045,6.51936963,206.69,206.67,0.2]
[1759152544953,4.8382641,206.69,206.67,0.2]
[1759152547447,3.87017703,206.71,206.68,43.24836968]
[1759152547632,3.87017703,206.71,206.69,0.71]
[1759152547831,26.0,206.74,206.69,0.71]
[1759152548043,4.83654862,206.76,206.69,0.71]
[1759152548241,26.0,206.74,206.69,0.71]
[1759152549348,26.0,206.74,206.7,4.83792936]
[1759152549549,26.0,206.74,206.71,38.41]
[1759152549751,26.0,206.74,206.72,0.71]
[1759152550738,31.39709249,206.74,206.68,0.71]
[1759152550937,26.0,206.72,206.69,37.7]
[1759152551142,26.0,206.72,206.69,38.41]
[1759152551548,4.83769532,206.71,206.69,38.41]
[1759152553039,26.0,206.68,206.67,0.2]
[1759152553456,45.95973716,206.68,206.67,0.2]
[1759152554660,45.39973716,206.68,206.67,0.2]
[1759152554958,30.83839752,206.68,206.67,0.2]
[1759152560870,59.55533117,206.68,206.67,0.2]
[1759152561851,58.99533117,206.68,206.67,0.2]
[1759152562258,59.55533117,206.68,206.67,0.2]
[1759152563268,58.99533117,206.68,206.67,0.2]
[1759152563854,59.55533117,206.68,206.67,0.2]
[1759152566478,62.79610453,206.68,206.67,0.2]
[1759152567882,62.23610453,206.68,206.67,0.2]
[1759152570477,62.23610453,206.68,206.67,0.9]
[1759152570958,62.23610453,206.68,206.67,0.2]
[1759152571374,17.802113,206.68,206.67,0.9]
[1759152571578,14.56133964,206.68,206.67,0.9]
[1759152572156,26.0,206.68,206.67,0.9]
[1759152572663,4.83835209,206.69,206.67,0.9]
[1759152572860,26.0,206.69,206.68,0.7]
[1759152573455,8.07820048,206.7,206.68,0.7]
[1759152573677,26.0,206.69,206.68,0.7]
[1759152573855,8.07820048,206.7,206.68,0.7]
[1759152574060,26.0,206.69,206.68,0.7]
[1759152574261,26.0,206.68,206.67,0.2]
[1759152574772,26.0,206.68,206.67,0.9]
[1759152576576,26.0,206.69,206.67,5.73863163]
[1759152576776,16.93604113,206.73,206.68,5.53839752]
[1759152577076,4.83702794,206.74,206.69,0.7]
[1759152577276,26.0,206.72,206.69,0.7]
[1759152578078,26.0,206.71,206.69,5.53810641]
[1759152578283,26.0,206.72,206.7,0.7]
[1759152578790,26.0,206.74,206.7,0.7]
[1759152579280,8.07974323,206.76,206.7,0.7]
[1759152579469,4.83630596,206.77,206.7,0.7]
[1759152579669,26.0,206.75,206.7,0.7]
[1759152579878,8.07794278,206.77,206.7,0.7]
[1759152580066,4.83630596,206.77,206.7,0.7]
[1759152580376,26.0,206.75,206.71,4.83769532]
[1759152580581,26.0,206.75,206.72,0.7]
[1759152580892,26.0,206.75,206.73,0.7]
[1759152581390,26.0,206.74,206.71,0.7]
[1759152581682,26.0,206.74,206.73,0.7]
[1759152590692,26.0,206.79,206.73,5.5372273]